bitfinex/quotes_BTCUSD_20260101
["timestamp","ask_amount","ask_price","bid_price","bid_amount"]
[1767280074971,0.02458459,88009.0,88008.0,0.44088595]
[1767280075167,0.02458459,88016.0,88008.0,0.44088595]
[1767280075405,0.03525502,88015.0,88008.0,0.44088595]
[1767280075593,0.03525502,88014.0,88008.0,0.44088595]
[1767280075782,0.03525502,88013.0,88008.0,0.44088595]
[1767280075987,0.03525502,88012.0,88008.0,0.44088595]
[1767280076180,0.03525502,88011.0,88008.0,0.44088595]
[1767280076364,0.03525502,88010.0,88008.0,0.44088595]
[1767280076579,0.02458459,88009.0,88008.0,0.44088595]
[1767280076968,0.02458459,88016.0,88008.0,0.44088595]
[1767280077180,0.04209799,88017.0,88008.0,0.44088595]
[1767280077181,0.03525504,88015.0,88008.0,0.44088595]
[1767280077370,0.03525504,88014.0,88008.0,0.44088595]
[1767280077639,0.03525504,88013.0,88008.0,0.44088595]
[1767280077795,0.03525504,88012.0,88008.0,0.44088595]
[1767280077975,0.03525504,88011.0,88008.0,0.44088595]
[1767280078184,0.03525506,88010.0,88008.0,0.44088595]
[1767280078405,0.04209799,88017.0,88008.0,0.44088595]
[1767280078406,0.02458459,88009.0,88008.0,0.44088595]
[1767280078993,0.02458459,88016.0,88008.0,0.44088595]
[1767280079188,0.01067065,88015.0,88008.0,0.44088595]
[1767280079482,0.03525524,88014.0,88008.0,0.44088595]
[1767280079722,0.03525524,88013.0,88008.0,0.44088595]
[1767280079925,0.03525524,88012.0,88008.0,0.44088595]
[1767280080121,0.03525524,88011.0,88008.0,0.44088595]
[1767280080282,0.03525524,88010.0,88008.0,0.44088595]
[1767280080483,0.02458459,88009.0,88008.0,0.44088595]
[1767280080702,0.02458459,88016.0,88008.0,0.44088595]
[1767280080975,0.03525835,88015.0,88008.0,0.44088595]
[1767280081185,0.03525835,88014.0,88008.0,0.44088595]
[1767280081409,0.03525835,88013.0,88008.0,0.44088595]
[1767280081612,0.03525835,88012.0,88008.0,0.44088595]
[1767280081830,0.03525835,88011.0,88008.0,0.44088595]
[1767280081985,0.03525835,88010.0,88008.0,0.44088595]
[1767280082187,0.02458691,88009.0,88008.0,0.44088595]
[1767280082408,0.02458691,88016.0,88008.0,0.44088595]
[1767280082614,0.03525835,88015.0,88008.0,0.44088595]
[1767280082923,0.03525835,88014.0,88008.0,0.44088595]
[1767280083132,0.03525835,88013.0,88008.0,0.44088595]
[1767280083308,0.03525835,88012.0,88008.0,0.44088595]
[1767280083478,0.03525835,88011.0,88008.0,0.44088595]
[1767280083677,0.03525835,88010.0,88008.0,0.44088595]
[1767280083953,0.02458691,88009.0,88008.0,0.44088595]
[1767280084078,0.02458691,88016.0,88008.0,0.44088595]
[1767280084278,0.01067143,88015.0,88008.0,0.44088595]
[1767280084529,0.03525834,88014.0,88008.0,0.44088595]
[1767280084779,0.03525834,88013.0,88008.0,0.44088595]
[1767280084984,0.03525834,88012.0,88008.0,0.44088595]
[1767280085201,0.03525834,88011.0,88008.0,0.44088595]
[1767280085403,0.03525834,88010.0,88008.0,0.44033695]
[1767280085612,0.02458691,88009.0,88008.0,0.44033695]
[1767280085781,0.02458691,88016.0,88008.0,0.44033695]
[1767280085966,0.03525835,88015.0,88008.0,0.44033695]
[1767280086199,0.03525835,88014.0,88008.0,0.44033695]
[1767280086563,0.03525835,88013.0,88008.0,0.44033695]
[1767280086745,0.03525835,88012.0,88008.0,0.44033695]
[1767280086940,0.03525835,88011.0,88008.0,0.44033695]
[1767280087103,0.03525835,88010.0,88008.0,0.44033695]
[1767280087330,0.02458691,88009.0,88008.0,0.44033695]
[1767280088090,0.02458691,88016.0,88008.0,0.44033695]
[1767280088331,0.01067142,88015.0,88008.0,0.44033695]
[1767280088533,0.03525833,88014.0,88008.0,0.44033695]
[1767280088755,0.03525833,88013.0,88008.0,0.44033695]
[1767280088966,0.03525833,88012.0,88008.0,0.44033695]
[1767280089153,0.03525833,88011.0,88008.0,0.44033695]
[1767280089303,0.03525832,88010.0,88008.0,0.44033695]
[1767280089509,0.02458691,88009.0,88008.0,0.44033695]
[1767280089910,0.02458691,88016.0,88008.0,0.44033695]
[1767280090110,0.03525832,88015.0,88008.0,0.44033695]
[1767280090354,0.03525832,88014.0,88008.0,0.44033695]
[1767280090587,0.03525832,88013.0,88008.0,0.44033695]
[1767280090811,0.03525832,88012.0,88008.0,0.44033695]
[1767280091025,0.09104609,88017.0,88008.0,0.44033695]
[1767280091026,0.03525832,88011.0,88008.0,0.44033695]
[1767280091220,0.03525832,88010.0,88008.0,0.44033695]
[1767280091411,0.02458691,88009.0,88008.0,0.44033695]
[1767280091641,0.02458691,88016.0,88008.0,0.44033695]
[1767280091833,0.03525831,88015.0,88008.0,0.44033695]
[1767280092019,0.03525831,88014.0,88008.0,0.44033695]
[1767280092372,0.08417076,88013.0,88008.0,0.42812502]
[1767280092542,0.03525831,88012.0,88008.0,0.42812502]
[1767280092745,0.03525831,88011.0,88008.0,0.42812502]
[1767280092885,0.03525831,88010.0,88008.0,0.42812502]
[1767280093091,0.02458691,88009.0,88008.0,0.42812502]
[1767280093494,0.02458691,88012.0,88008.0,0.42812502]
[1767280093718,0.0352583,88011.0,88008.0,0.42812502]
[1767280093948,0.0352583,88010.0,88008.0,0.42812502]
[1767280094094,0.02458691,88009.0,88008.0,0.42812502]
[1767280094295,0.02458691,88012.0,88008.0,0.42812502]
[1767280094517,0.01067138,88011.0,88008.0,0.42812502]
[1767280094884,0.03525829,88010.0,88008.0,0.42812502]
[1767280095060,0.02458691,88009.0,88008.0,0.42812502]
[1767280095441,0.02458691,88012.0,88008.0,0.42812502]
[1767280095830,0.03525828,88011.0,88008.0,0.42812502]
[1767280096014,0.03525828,88010.0,88008.0,0.42812502]
[1767280096202,0.0245868,88009.0,88008.0,0.42812502]
[1767280096608,0.0245868,88016.0,88008.0,0.42812502]
[1767280096822,0.01067136,88015.0,88008.0,0.42812502]
[1767280097025,0.03525816,88014.0,88008.0,0.42812502]
[1767280097234,0.03525816,88013.0,88008.0,0.42812502]
[1767280097387,0.03525816,88012.0,88008.0,0.42812502]
[1767280097596,0.03525816,88011.0,88008.0,0.42812502]
[1767280097841,0.03525816,88010.0,88008.0,0.42812502]
[1767280098073,0.0245868,88009.0,88008.0,0.42812502]
[1767280098289,0.0245868,88016.0,88008.0,0.42812502]
[1767280098492,0.03525816,88015.0,88008.0,0.42812502]
[1767280098727,0.03525816,88014.0,88008.0,0.42812502]
[1767280098930,0.03525816,88013.0,88008.0,0.42812502]
[1767280099155,0.03525816,88012.0,88008.0,0.42812502]
[1767280099356,0.03525816,88011.0,88008.0,0.42812502]
[1767280099553,0.03525816,88010.0,88008.0,0.42812502]
[1767280099757,0.0245868,88009.0,88008.0,0.42812502]
[1767280100002,0.0245868,88016.0,88008.0,0.42812502]
[1767280100178,0.03525816,88015.0,88008.0,0.42812502]
[1767280100333,0.03525816,88014.0,88008.0,0.42812502]
[1767280100520,0.03525816,88013.0,88008.0,0.42812502]
[1767280100731,0.03525816,88012.0,88008.0,0.42812502]
[1767280100934,0.03525816,88011.0,88008.0,0.42812502]
[1767280101138,0.03525816,88010.0,88008.0,0.42812502]
[1767280101345,0.0245868,88009.0,88008.0,0.42812502]
[1767280101551,0.0245868,88016.0,88008.0,0.42812502]
[1767280101806,0.01067137,88015.0,88008.0,0.42812502]
[1767280102014,0.03525817,88014.0,88008.0,0.42812502]
[1767280102156,0.03525817,88013.0,88008.0,0.42812502]
[1767280102352,0.03525817,88012.0,88008.0,0.42812502]
[1767280102594,0.03525817,88011.0,88008.0,0.42812502]
[1767280102832,0.03525817,88010.0,88008.0,0.42812502]
[1767280102984,0.0245868,88009.0,88008.0,0.42812502]
[1767280103187,0.02458676,88009.0,88008.0,0.42812502]
[1767280103411,0.0114,88017.0,88008.0,0.32121031]
[1767280103624,0.0114,88017.0,88008.0,0.27998194]
[1767280103625,0.03525811,88016.0,88008.0,0.27998194]
[1767280103768,0.03525811,88015.0,88008.0,0.27998194]
[1767280103974,0.03525811,88014.0,88008.0,0.27998194]
[1767280104219,0.03525811,88013.0,88009.0,0.04934792]
[1767280104526,0.03525811,88012.0,88009.0,0.04934792]
[1767280104732,0.03525813,88011.0,88009.0,0.04934792]
[1767280105047,0.01067137,88010.0,88009.0,0.04934792]
[1767280105250,0.01067137,88016.0,88009.0,0.04879892]
[1767280105454,0.03525813,88015.0,88009.0,0.04879892]
[1767280105630,0.03525813,88014.0,88009.0,0.04879892]
[1767280105828,0.03525813,88013.0,88009.0,0.04879892]
[1767280106012,0.03525813,88012.0,88009.0,0.04879892]
[1767280106207,0.03525813,88011.0,88009.0,0.04879892]
[1767280106457,0.01067137,88010.0,88009.0,0.04879892]
[1767280106662,0.01067137,88016.0,88009.0,0.04879892]
[1767280106833,0.02458677,88015.0,88009.0,0.04879892]
[1767280107032,0.01067137,88014.0,88009.0,0.04879892]
[1767280107351,0.02458677,88013.0,88009.0,0.04879892]
[1767280107570,0.01067137,88012.0,88009.0,0.04879892]
[1767280107764,0.02458677,88011.0,88009.0,0.04879892]
[1767280107977,0.01067137,88010.0,88009.0,0.04879892]
[1767280108769,0.01067137,88016.0,88009.0,0.04879892]
[1767280108936,0.03525818,88015.0,88008.0,0.27998194]
[1767280109136,0.03525818,88014.0,88008.0,0.27998194]
[1767280109355,0.03525818,88013.0,88008.0,0.27998194]
[1767280109674,0.03525818,88012.0,88008.0,0.27998194]
[1767280109853,0.03525818,88011.0,88008.0,0.27998194]
[1767280110076,0.01067137,88010.0,88008.0,0.27998194]
[1767280110258,0.0114,88017.0,88008.0,0.27998194]
[1767280110498,0.03525826,88016.0,88008.0,0.27998194]
[1767280110702,0.03525826,88015.0,88008.0,0.27998194]
[1767280110887,0.03525826,88014.0,88008.0,0.27998194]
[1767280111062,0.03525826,88013.0,88008.0,0.27998194]
[1767280111262,0.03525826,88012.0,88008.0,0.27998194]
[1767280111519,0.03525826,88011.0,88008.0,0.27998194]
[1767280111724,0.01067141,88010.0,88008.0,0.27998194]
[1767280111900,0.0114,88017.0,88008.0,0.27998194]
[1767280112107,0.0352583,88016.0,88008.0,0.27998194]
[1767280112317,0.0352583,88015.0,88008.0,0.27998194]
[1767280112633,0.0352583,88014.0,88008.0,0.27998194]
[1767280112787,0.0352583,88013.0,88008.0,0.27943194]
[1767280113132,0.0352583,88012.0,88008.0,0.27943194]
[1767280113329,0.0352583,88011.0,88008.0,0.27943194]
[1767280113530,0.0352583,88010.0,88008.0,0.27883499]
[1767280113830,0.03525756,88009.0,88008.0,0.27883499]
[1767280114625,0.03525756,88009.0,88008.0,0.27823805]
[1767280115026,0.03525756,88009.0,88008.0,0.27440751]
[1767280119279,0.08500231,88009.0,88008.0,0.27440751]
[1767280119474,0.08500231,88009.0,88008.0,0.16293581]
[1767280119675,0.09640231,88009.0,88008.0,0.16293581]
[1767280123575,0.09640231,88009.0,87996.0,0.0114]
[1767280123576,0.01136299,88005.0,87991.0,0.01041993]
[1767280123778,0.05743395,88009.0,87973.0,0.04954792]
[1767280123779,0.00506983,87996.0,87973.0,0.04954792]
[1767280123979,0.00506983,87994.0,87980.0,0.4439812]
[1767280124183,0.01067068,87993.0,87980.0,0.4439812]
[1767280124393,0.03524402,87992.0,87980.0,0.4439812]
[1767280124574,0.03524402,87991.0,87980.0,0.4439812]
[1767280124779,0.03524402,87990.0,87980.0,0.4439812]
[1767280124982,0.03524402,87989.0,87973.0,0.04954792]
[1767280125193,0.03524402,87988.0,87973.0,0.04954792]
[1767280125396,0.03413386,87990.0,87973.0,0.04954792]
[1767280125602,0.01064706,87989.0,87973.0,0.04954792]
[1767280125960,0.01064706,87988.0,87973.0,0.04954792]
[1767280126141,0.00506983,87994.0,87973.0,0.04954792]
[1767280126496,0.03413386,87987.0,87975.0,0.04934792]
[1767280126668,0.01136415,87996.0,87974.0,0.0114]
[1767280126669,0.03312716,87997.0,87987.0,0.00055]
[1767280126869,0.04974475,88019.0,87990.0,0.4439812]
[1767280127101,0.01136182,88014.0,88000.0,0.4439812]
[1767280127281,0.03412668,88013.0,88000.0,0.4439812]
[1767280128173,0.03412668,88013.0,87998.0,0.0114]
[1767280128560,0.03412668,88013.0,88000.0,0.4439812]
[1767280131181,0.03412668,88013.0,87998.0,0.0114]
[1767280131340,0.4439812,88010.0,87998.0,0.0114]
[1767280131542,0.49372595,88010.0,87998.0,0.0114]
[1767280134783,0.04974475,88010.0,87998.0,0.0114]
[1767280135087,0.49372595,88010.0,87998.0,0.0114]
[1767280137401,0.02452617,88009.0,87998.0,0.0114]
[1767280138809,0.01064542,88008.0,87998.0,0.0114]
[1767280139013,0.03517159,88007.0,87998.0,0.0114]
[1767280139187,0.03517159,88006.0,87998.0,0.0114]
[1767280139417,0.03517159,88005.0,87998.0,0.0114]
[1767280139617,0.02452617,88004.0,87998.0,0.0114]
[1767280139827,0.02452617,88003.0,87998.0,0.0114]
[1767280140139,0.02452617,88002.0,87998.0,0.0114]
[1767280140364,0.04974475,88010.0,87998.0,0.0114]
[1767280140557,0.01064604,88009.0,87998.0,0.0114]
[1767280140762,0.01064604,88008.0,87998.0,0.0114]
[1767280140941,0.01064604,88007.0,87999.0,0.4439812]
[1767280141103,0.01064604,88006.0,87998.0,0.0114]
[1767280141305,0.01064604,88005.0,87998.0,0.0114]
[1767280141553,0.04974475,88010.0,87998.0,0.0114]
[1767280141780,0.01064668,88009.0,87998.0,0.0114]
[1767280141989,0.01064668,88008.0,87998.0,0.00372781]
[1767280142134,0.01064668,88007.0,87998.0,0.00372781]
[1767280142346,0.04974475,88010.0,87998.0,0.00372781]
[1767280142347,0.01064668,88006.0,87998.0,0.00372781]
[1767280142554,0.01064668,88005.0,87998.0,0.00372781]
[1767280142758,0.01064668,88004.0,87998.0,0.00372781]
[1767280142983,0.04910723,88009.0,87998.0,0.00317881]
[1767280143191,0.0106474,88008.0,87998.0,0.00317881]
[1767280143397,0.0106474,88007.0,87998.0,0.00317881]
[1767280143603,0.0106474,88006.0,87998.0,0.00317881]
[1767280143815,0.04910723,88009.0,87998.0,0.00317881]
[1767280143816,0.0106474,88005.0,87998.0,0.00324296]
[1767280144025,0.0106474,88004.0,87998.0,0.00324296]
[1767280144240,0.0106474,88003.0,87999.0,0.0114]
[1767280144459,0.0106474,88002.0,87999.0,0.0114]
[1767280145512,0.0106474,88002.0,87999.0,0.01085]
[1767280145996,0.01064886,88001.0,87999.0,0.01085]
[1767280146201,4.409e-05,88003.0,87999.0,0.01085]
[1767280146408,0.01064959,88002.0,87999.0,0.01085]
[1767280146645,0.01064959,88001.0,87999.0,0.01085]
[1767280146867,4.409e-05,88003.0,87999.0,0.01085]
[1767280147159,0.01064959,88002.0,87999.0,0.01085]
[1767280147392,0.01064959,88001.0,87999.0,0.01085]
[1767280147574,4.409e-05,88003.0,87999.0,0.01085]
[1767280147726,0.01065044,88002.0,87999.0,0.01085]
[1767280147941,0.01065044,88001.0,87999.0,0.01085]
[1767280148145,0.01065144,88000.0,87999.0,0.01085]
[1767280149338,0.01065259,88000.0,87999.0,0.01085]
[1767280150745,0.01065259,88000.0,87997.0,0.0114]
[1767280150918,4.409e-05,88003.0,87997.0,0.0114]
[1767280151152,0.01065185,88002.0,87997.0,0.0114]
[1767280151282,0.01065185,88001.0,87997.0,0.0114]
[1767280151486,0.01065185,88000.0,87997.0,0.0114]
[1767280151695,4.409e-05,88003.0,87997.0,0.0114]
[1767280151894,0.05975972,88002.0,87997.0,0.0114]
[1767280152094,0.01065249,88001.0,87997.0,0.0114]
[1767280152332,0.03519573,88000.0,87997.0,0.0114]
[1767280152517,0.03519573,87999.0,87997.0,0.0114]
[1767280152712,0.02454324,87998.0,87997.0,0.0114]
[1767280153099,0.02454324,88001.0,87997.0,0.0114]
[1767280153301,0.0351972,88000.0,87997.0,0.0114]
[1767280153613,0.0351972,87999.0,87997.0,0.0114]
[1767280153819,0.02454324,87998.0,87997.0,0.0114]
[1767280154345,0.02454324,88001.0,87997.0,0.0114]
[1767280154550,0.01065649,88000.0,87997.0,0.0114]
[1767280154781,0.03519973,87999.0,87997.0,0.0114]
[1767280154897,0.02454324,87998.0,87997.0,0.0114]
[1767280155102,0.01065667,87998.0,87997.0,0.0114]
[1767280155303,0.03519991,87998.0,87994.0,0.0114]
[1767280155504,0.02454324,87997.0,87994.0,0.0114]
[1767280155707,0.04910723,88002.0,87994.0,0.0114]
[1767280155708,0.02399424,87996.0,87994.0,0.0114]
[1767280155932,0.04910723,88002.0,87994.0,0.0114]
[1767280156133,0.01065982,88001.0,87994.0,0.0114]
[1767280156333,0.01065982,88000.0,87994.0,0.0114]
[1767280156534,0.01065982,87999.0,87994.0,0.0114]
[1767280156812,0.01065982,87998.0,87994.0,0.0114]
[1767280157116,0.01066525,87997.0,87994.0,0.0114]
[1767280157327,0.01066525,87996.0,87994.0,0.0114]
[1767280157480,4.409e-05,88003.0,87996.0,0.00055]
[1767280157664,0.01066501,88002.0,87996.0,0.00055]
[1767280157867,0.01066501,88001.0,87996.0,0.00055]
[1767280158062,0.01066501,88000.0,87994.0,0.0114]
[1767280158263,0.01066501,87999.0,87994.0,0.0114]
[1767280158517,0.01066501,87998.0,87994.0,0.0114]
[1767280158823,0.01066501,87997.0,87994.0,0.0114]
[1767280159030,0.01066501,87997.0,87986.0,0.04566387]
[1767280159031,0.01066501,87996.0,87986.0,0.04566387]
[1767280159231,0.01066453,87995.0,87987.0,0.05706387]
[1767280159431,0.01066453,87994.0,87987.0,0.0114]
[1767280159636,0.04910723,88002.0,87987.0,0.0114]
[1767280159839,0.01066451,88001.0,87987.0,0.0114]
[1767280160134,0.01066451,88000.0,87987.0,0.0114]
[1767280160334,0.01066451,87999.0,87987.0,0.0114]
[1767280160551,0.01066451,87998.0,87987.0,0.0114]
[1767280160769,0.01066451,87997.0,87987.0,0.0114]
[1767280160959,0.01066451,87996.0,87987.0,0.0114]
[1767280161158,0.01066451,87995.0,87987.0,0.0114]
[1767280161364,0.01066451,87994.0,87987.0,0.0114]
[1767280161569,0.04910723,87999.0,87987.0,0.0114]
[1767280161724,0.0106638,87998.0,87987.0,0.0114]
[1767280161955,0.0106638,87997.0,87987.0,0.0114]
[1767280162176,0.0106638,87996.0,87987.0,0.0114]
[1767280162337,0.0106638,87995.0,87987.0,0.0114]
[1767280162538,0.0106638,87994.0,87987.0,0.0114]
[1767280162739,0.04910723,87999.0,87987.0,0.0114]
[1767280162989,0.0106635,87998.0,87987.0,0.0114]
[1767280163191,0.0106635,87997.0,87987.0,0.0114]
[1767280163339,0.0106635,87996.0,87987.0,0.0114]
[1767280163542,0.0106635,87995.0,87987.0,0.0114]
[1767280163739,0.0106635,87994.0,87987.0,0.0114]
[1767280163938,0.0106635,87993.0,87987.0,0.0114]
[1767280164140,0.0106625,87992.0,87987.0,0.0114]
[1767280164364,0.0106625,87991.0,87987.0,0.0114]
[1767280164569,0.05835062,87994.0,87987.0,0.0114]
[1767280164749,0.01066176,87993.0,87987.0,0.0114]
[1767280164941,0.01066176,87992.0,87987.0,0.0114]
[1767280165143,0.01066176,87991.0,87982.0,0.04566387]
[1767280165387,0.0463123,87997.0,87982.0,0.04566387]
[1767280165599,0.05697322,87996.0,87981.0,0.0570249]
[1767280165762,0.0463123,87994.0,87981.0,0.0570249]
[1767280165948,0.01066092,87993.0,87981.0,0.0570249]
[1767280166204,0.01066092,87992.0,87981.0,0.0570249]
[1767280166381,0.01066092,87991.0,87981.0,0.0570249]
[1767280166580,0.0463123,87994.0,87981.0,0.0570249]
[1767280166782,0.01066019,87993.0,87981.0,0.0570249]
[1767280166948,0.01066019,87992.0,87981.0,0.0570249]
[1767280167301,0.01066019,87991.0,87981.0,0.0570249]
[1767280167509,0.01136505,87989.0,87981.0,0.0001449]
[1767280167683,0.45216036,87991.0,87981.0,0.0001449]
[1767280167684,0.0463123,87986.0,87981.0,0.0001449]
[1767280167879,0.03521625,87985.0,87982.0,0.0114]
[1767280168118,0.03521625,87984.0,87982.0,0.010851]
[1767280168322,0.03521625,87983.0,87982.0,0.010851]
[1767280168522,0.03521625,87983.0,87982.0,0.01079417]
[1767280171348,0.03521625,87983.0,87982.0,0.0046644]
[1767280171514,0.03521625,87983.0,87981.0,1e-08]
[1767280171708,0.02400706,87982.0,87981.0,1e-08]
[1767280171939,0.0463123,87991.0,87982.0,0.00055]
[1767280172158,0.02201059,87990.0,87982.0,0.00055]
[1767280172361,0.02201072,87989.0,87982.0,0.00055]
[1767280172561,0.01064567,87988.0,87981.0,1e-08]
[1767280172758,0.01064567,87987.0,87981.0,1e-08]
[1767280173001,0.01064567,87986.0,87981.0,1e-08]
[1767280173205,0.01064567,87985.0,87981.0,1e-08]
[1767280173478,0.01064567,87984.0,87981.0,1e-08]
[1767280173677,0.0463123,87988.0,87981.0,1e-08]
[1767280173836,0.0463123,87986.0,87981.0,1e-08]
[1767280174041,0.01136492,87990.0,87981.0,1e-08]
[1767280174042,0.0463123,87984.0,87981.0,1e-08]
[1767280177203,0.01136492,87990.0,87981.0,1e-08]
[1767280177527,0.0106398,87989.0,87981.0,1e-08]
[1767280177706,0.0106398,87988.0,87981.0,1e-08]
[1767280178008,0.0106398,87987.0,87981.0,1e-08]
[1767280178225,0.0463123,87991.0,87974.0,0.06071282]
[1767280178226,0.0106398,87986.0,87974.0,0.06071282]
[1767280178426,0.0106398,87985.0,87974.0,0.06071282]
[1767280178582,0.0577123,87991.0,87974.0,0.06071282]
[1767280178919,0.01064649,87990.0,87974.0,0.06071282]
[1767280179122,0.01064649,87989.0,87974.0,0.06071282]
[1767280179272,0.01064649,87988.0,87974.0,0.06071282]
[1767280179470,0.01064649,87987.0,87974.0,0.06071282]
[1767280179667,0.01064649,87986.0,87974.0,0.06071282]
[1767280179950,0.01064649,87985.0,87974.0,0.06071282]
[1767280180159,0.01890301,87990.0,87974.0,0.06071282]
[1767280180294,0.0106461,87989.0,87974.0,0.06071282]
[1767280180494,0.0106461,87988.0,87974.0,0.06071282]
[1767280180705,0.0106461,87987.0,87974.0,0.06071282]
[1767280181065,0.0106461,87986.0,87974.0,0.06071282]
[1767280181191,0.0106461,87985.0,87974.0,0.06071282]
[1767280181391,0.01890301,87990.0,87974.0,0.06071282]
[1767280181592,0.03832988,87989.0,87974.0,0.06071282]
[1767280181791,0.01064615,87988.0,87974.0,0.06071282]
[1767280181996,0.01064615,87987.0,87974.0,0.06071282]
[1767280182226,0.0001449,87994.0,87975.0,0.04931282]
[1767280184146,0.02467628,87994.0,87975.0,0.04931282]
[1767280186771,0.03067362,87991.0,87975.0,0.04931282]
[1767280188271,0.03067362,87990.0,87975.0,0.04931282]
[1767280189878,0.03067362,87989.0,87975.0,0.04931282]
[1767280190434,0.03067362,87990.0,87975.0,0.04931282]
[1767280191033,0.055205,87989.0,87975.0,0.04931282]
[1767280191183,0.02453138,87988.0,87975.0,0.04931282]
[1767280191387,0.02453138,87987.0,87975.0,0.04931282]
[1767280191589,0.02453138,87986.0,87975.0,0.04931282]
[1767280191788,0.02453138,87985.0,87975.0,0.04931282]
[1767280192009,0.02453138,87984.0,87975.0,0.04931282]
[1767280192225,0.02453138,87983.0,87975.0,0.04931282]
[1767280192427,0.03067362,87988.0,87975.0,0.04931282]
[1767280192862,0.03067362,87986.0,87975.0,0.04931282]
[1767280193161,0.03067362,87986.0,87975.0,0.04876382]
[1767280193363,0.01136492,87990.0,87975.0,0.04876382]
[1767280193364,0.03067362,87985.0,87975.0,0.04876382]
[1767280194286,0.01066328,87984.0,87975.0,0.04876382]
[1767280194479,0.01066328,87983.0,87975.0,0.04876382]
[1767280194682,0.01066328,87982.0,87975.0,0.04876382]
[1767280194908,0.01066328,87981.0,87975.0,0.04876382]
[1767280195115,0.01066328,87980.0,87975.0,0.04876382]
[1767280195316,0.01066328,87979.0,87975.0,0.04876382]
[1767280195465,0.03067362,87984.0,87975.0,0.04876382]
[1767280195668,0.01066526,87983.0,87975.0,0.04876382]
[1767280195886,0.01066526,87982.0,87975.0,0.04876382]
[1767280196096,0.01066526,87981.0,87975.0,0.04876382]
[1767280196298,0.01066526,87980.0,87974.0,0.0114]
[1767280196640,0.05997722,87988.0,87974.0,0.0114]
[1767280196641,0.01066526,87979.0,87975.0,0.03281771]
[1767280196793,0.03067362,87985.0,87975.0,0.03281771]
[1767280196996,0.01066779,87984.0,87975.0,0.03281771]
[1767280197224,0.01066779,87983.0,87975.0,0.03281771]
[1767280197398,0.01066779,87982.0,87975.0,0.03281771]
[1767280197598,0.01066779,87981.0,87975.0,0.03281771]
[1767280197797,0.01066779,87980.0,87975.0,0.03281771]
[1767280198155,0.01066779,87979.0,87975.0,0.03281771]
[1767280198352,0.01066779,87978.0,87975.0,0.03281771]
[1767280198561,0.03067362,87984.0,87975.0,0.03281771]
[1767280198732,0.01067026,87983.0,87975.0,0.03281771]
[1767280198916,0.01067026,87982.0,87975.0,0.03281771]
[1767280199117,0.01067026,87981.0,87975.0,0.03281771]
[1767280199319,0.01067026,87980.0,87974.0,0.0114]
[1767280199519,0.01067026,87979.0,87974.0,0.0114]
[1767280199717,0.01067026,87978.0,87974.0,0.0114]
[1767280199943,0.01067026,87977.0,87974.0,0.0114]
[1767280200107,0.03067362,87983.0,87974.0,0.0114]
[1767280200458,0.04134396,87982.0,87974.0,0.0114]
[1767280200658,0.01067034,87981.0,87974.0,0.0114]
[1767280200882,0.01067034,87980.0,87974.0,0.0114]
[1767280201047,0.01067034,87979.0,87974.0,0.0114]
[1767280201242,0.01067034,87978.0,87974.0,0.0114]
[1767280201447,0.01067034,87977.0,87974.0,0.0114]
[1767280201643,0.01067034,87976.0,87974.0,0.0114]
[1767280201829,0.03067362,87982.0,87974.0,0.0114]
[1767280202029,0.01066989,87981.0,87974.0,0.0114]
[1767280202288,0.02080199,87980.0,87968.0,0.0114]
[1767280202489,0.00055,87974.0,87968.0,0.0114]
[1767280202690,0.05928193,87973.0,87968.0,0.0114]
[1767280202886,0.05928193,87972.0,87963.0,0.0115449]
[1767280203107,0.01066989,87971.0,87963.0,0.01161707]
[1767280204270,0.03067362,87975.0,87963.0,0.01161707]
[1767280204471,0.03067362,87975.0,87964.0,0.04603176]
[1767280204710,0.05524042,87975.0,87964.0,0.04603176]
[1767280205022,0.0245668,87974.0,87964.0,0.04603176]
[1767280205186,0.0245668,87973.0,87964.0,0.04603176]
[1767280205522,0.0245668,87972.0,87964.0,0.04603176]
[1767280205745,0.0245668,87971.0,87964.0,0.04603176]
[1767280205973,0.0245668,87970.0,87964.0,0.04603176]
[1767280206296,0.0245668,87969.0,87964.0,0.04603176]
[1767280206574,0.0245668,87968.0,87964.0,0.04603176]
[1767280206778,0.0245668,87967.0,87964.0,0.04603176]
[1767280207084,0.0245668,87966.0,87964.0,0.04603176]
[1767280207377,0.03067362,87975.0,87964.0,0.04603176]
[1767280207835,0.03067362,87976.0,87964.0,0.04603176]
[1767280208044,0.05522763,87977.0,87964.0,0.04603176]
[1767280208272,0.02455401,87976.0,87964.0,0.04603176]
[1767280208482,0.02455401,87975.0,87964.0,0.04603176]
[1767280208820,0.02455401,87974.0,87964.0,0.04603176]
[1767280209119,0.02455401,87973.0,87964.0,0.0451052]
[1767280209403,0.02455401,87972.0,87964.0,0.0451052]
[1767280209563,0.02455401,87971.0,87964.0,0.0451052]
[1767280209906,0.02455401,87970.0,87964.0,0.0451052]
[1767280210105,0.02455401,87969.0,87964.0,0.0451052]
[1767280210307,0.02455401,87968.0,87964.0,0.0451052]
[1767280210604,0.03067362,87976.0,87964.0,0.0451052]
[1767280211286,0.02454778,87975.0,87964.0,0.0451052]
[1767280211483,0.02454778,87974.0,87964.0,0.0451052]
[1767280211702,0.02454778,87973.0,87964.0,0.0451052]
[1767280211908,0.02454778,87972.0,87964.0,0.0451052]
[1767280212113,0.02454778,87971.0,87964.0,0.0451052]
[1767280212307,0.02454778,87970.0,87964.0,0.0451052]
[1767280212650,0.02454778,87969.0,87964.0,0.0451052]
[1767280212781,0.02454778,87968.0,87964.0,0.0451052]
[1767280212989,0.03067362,87977.0,87964.0,0.0451052]
[1767280216284,0.01065433,87976.0,87964.0,0.0451052]
[1767280216492,0.03519988,87975.0,87964.0,0.0451052]
[1767280216793,0.03519988,87974.0,87964.0,0.0451052]
[1767280216992,0.03519988,87973.0,87963.0,0.01161707]
[1767280217188,0.02454555,87972.0,87963.0,0.01161707]
[1767280217400,0.02454555,87971.0,87963.0,0.01161707]
[1767280217599,0.02454555,87970.0,87963.0,0.01161707]
[1767280217824,0.02454555,87969.0,87963.0,0.01161707]
[1767280218159,0.02454555,87968.0,87963.0,0.05764883]
[1767280218359,0.07928566,87977.0,87963.0,0.05764883]
[1767280218577,0.03520441,87976.0,87963.0,0.05764883]
[1767280218779,0.03520441,87975.0,87963.0,0.05764883]
[1767280218941,0.03520441,87974.0,87963.0,0.05764883]
[1767280219278,0.03520441,87973.0,87963.0,0.05764883]
[1767280219487,0.03520441,87972.0,87963.0,0.05764883]
[1767280219689,0.02454932,87971.0,87963.0,0.05764883]
[1767280219899,0.02454932,87970.0,87963.0,0.05764883]
[1767280220063,0.02454932,87969.0,87963.0,0.05764883]
[1767280220276,0.02454932,87968.0,87964.0,0.04603176]
[1767280220478,0.07928566,87977.0,87964.0,0.04603176]
[1767280220658,0.03520866,87976.0,87964.0,0.04603176]
[1767280220862,0.03520866,87975.0,87964.0,0.04603176]
[1767280221074,0.01967306,87974.0,87966.0,0.04603176]
[1767280221267,0.03067362,87980.0,87966.0,0.04603176]
[1767280222281,0.03067362,87979.0,87966.0,0.04603176]